fUSD/lending_fUSD_20240318
["ID","MTS","AMOUNT","RATE_DAILY","PERIOD"]
[319436355,1710736338200,-500.0,0.00033698,4]
[319436356,1710736338215,-500.0,0.00033698,4]
[319436357,1710736338227,-788.73,0.00033698,4]
[319436358,1710736338240,-500.0,0.00033698,4]
[319436359,1710736338254,-500.0,0.00033698,4]
[319436360,1710736338268,-2115.38,0.00033698,4]
[319436361,1710736338284,-500.0,0.00033698,4]
[319436362,1710736338298,-1520.72,0.00033698,4]
[319436363,1710736338309,-1607.09,0.00033698,4]
[319436364,1710736338322,-500.0,0.00033698,4]
[319436365,1710736338335,-500.0,0.00033698,4]
[319436366,1710736338348,-1832.55,0.00033698,4]
[319436367,1710736338362,-824.57,0.00033698,4]
[319436368,1710736338376,-1581.71,0.00033698,4]
[319436369,1710736338388,-583.42,0.00033698,4]
[319436370,1710736338400,-1212.73,0.00033698,4]
[319436371,1710736338414,-1404.3,0.00033698,4]
[319436372,1710736338429,-24025.87,0.00033698,4]
[319436373,1710736338442,-500.0,0.00033698,4]
[319436374,1710736338454,-2546.72,0.00033698,4]
[319436375,1710736338466,-2851.25,0.00033698,4]
[319436376,1710736338478,-2287.3,0.00033698,4]
[319436377,1710736338492,-500.0,0.00033698,4]
[319436378,1710736338507,-500.0,0.00033698,4]
[319436379,1710736338521,-647.58,0.00033698,4]
[319436380,1710736338535,-585.33,0.00033698,4]
[319436381,1710736338546,-1053.54,0.00033698,4]
[319436382,1710736338556,-1503.64,0.00033698,4]
[319436383,1710736338567,-1183.08,0.00033698,4]
[319436384,1710736338582,-554.14,0.00033698,4]
[319436385,1710736338594,-2122.6,0.00033698,4]
[319436386,1710736338608,-500.0,0.00033698,4]
[319436387,1710736338620,-513.85,0.00033698,4]
[319436388,1710736338632,-1088.26,0.00033698,4]
[319436389,1710736338646,-1355.29,0.00033698,4]
[319436390,1710736338658,-1081.54,0.00033698,4]
[319436391,1710736338669,-602.31,0.00033698,4]
[319436392,1710736338681,-16800.01,0.00033698,4]
[319436393,1710736338692,-732.67,0.00033698,4]
[319436394,1710736338703,-500.0,0.00033698,4]
[319436395,1710736338715,-500.0,0.00033698,4]
[319436396,1710736338727,-742.96,0.00033698,4]
[319436397,1710736338740,-875.28,0.00033698,4]
[319436398,1710736338752,-500.0,0.00033698,4]
[319436399,1710736338768,-1382.05,0.00033698,4]
[319436400,1710736338781,-9617.26,0.00033698,4]
[319436401,1710736338793,-632.75,0.00033698,4]
[319436402,1710736338804,-523.3,0.00033698,4]
[319436403,1710736338815,-500.0,0.00033698,4]
[319436404,1710736338826,-9955.07,0.00033698,4]
[319436405,1710736338839,-1242.28,0.00033698,4]
[319436406,1710736338850,-508.05703869,0.00033698,4]
[319436407,1710736338862,-815.39,0.00033698,4]
[319436408,1710736338873,-606.68,0.00033698,4]
[319436409,1710736338885,-2827.35,0.00033698,4]
[319436410,1710736338896,-500.0,0.00033698,4]
[319436411,1710736338907,-584.4,0.00033698,4]
[319436412,1710736338918,-2844.9,0.00033698,4]
[319436413,1710736338931,-918.65,0.00033698,4]
[319436414,1710736338942,-2329.09,0.00033698,4]
[319436415,1710736338954,-2657.41,0.00033698,4]
[319436416,1710736338966,-500.0,0.00033698,4]
[319436417,1710736338979,-5715.22,0.00033698,4]
[319436418,1710736338991,-1178.39,0.00033698,4]
[319436419,1710736339003,-1030.3,0.00033698,4]
[319436420,1710736339014,-7010.64,0.00033698,4]
[319436421,1710736339026,-324.4006697,0.00033698,4]
[319436422,1710736339039,-795.31,0.00033698,4]
[319436423,1710736339050,-647.9,0.00033698,4]
[319436424,1710736339063,-756.1,0.00033698,4]
[319436425,1710736339074,-500.0,0.00033698,4]
[319436426,1710736339086,-500.0,0.00033698,4]
[319436427,1710736339098,-1213.71,0.00033698,4]
[319436428,1710736339109,-3112.49,0.00033698,4]
[319436429,1710736339121,-16099.23,0.00033698,4]
[319436430,1710736339132,-1067.48,0.00033698,4]
[319436431,1710736339144,-1085.99,0.00033698,4]
[319436432,1710736339155,-500.0,0.00033698,4]
[319436433,1710736339167,-7279.53,0.00033698,4]
[319436434,1710736339178,-500.0,0.00033698,4]
[319436435,1710736339190,-3639.26,0.00033698,4]
[319436436,1710736339201,-4937.08,0.00033698,4]
[319436437,1710736339212,-14656.9,0.00033698,4]
[319436438,1710736339223,-500.0,0.00033698,4]
[319436439,1710736339234,-1119.07,0.00033698,4]
[319436440,1710736339245,-500.0,0.00033698,4]
[319436441,1710736339257,-714.97,0.00033698,4]
[319436442,1710736339268,-500.0,0.00033698,4]
[319436443,1710736339278,-3778.15,0.00033698,4]
[319436444,1710736339291,-2442.22,0.00033698,4]
[319436445,1710736339302,-915.55,0.00033698,4]
[319436446,1710736339313,-500.0,0.00033698,4]
[319436447,1710736339324,-350.82076932,0.00033698,4]
[319436448,1710736339335,-2039.35,0.00033698,4]
[319436449,1710736339346,-1590.31,0.00033698,4]
[319436450,1710736339358,-500.0,0.00033698,2]
[319436451,1710736339369,-2078.76,0.00033698,4]
[319436452,1710736339379,-765.76,0.00033698,4]
[319436453,1710736339390,-2024.35,0.00033698,4]
[319436454,1710736339401,-500.0,0.00033698,4]
[319436455,1710736339412,-1571.0,0.00033711,3]
[319436456,1710736339423,-1006.74,0.0003372,2]
[319436457,1710736339435,-150.0,0.00033765,7]
[319436458,1710736339447,-8712.0,0.00033773,41]
[319436459,1710736339459,-150.0,0.00033789,7]
[319436460,1710736339471,-152.0,0.0003379,9]
[319436461,1710736339482,-151.031811,0.00033798,4]
[319436462,1710736339493,-151.031811,0.00033798,5]
[319436463,1710736339505,-953.97,0.000338,9]
[319436464,1710736339516,-156.19687461,0.00033836,30]
[319436465,1710736339527,-150.0,0.00033862,7]
[319436466,1710736339539,-155.94463872,0.00033872,2]
[319436467,1710736339550,-150.0,0.00033876,7]
[319436468,1710736339561,-150.0,0.00033903,7]
[319436469,1710736339572,-3639.41,0.00033909,5]
[319436470,1710736339583,-106602.75,0.00033909,5]
[319436471,1710736339594,-150.0,0.00033972,7]
[319436472,1710736339604,-500.0,0.00033972,4]
[319436473,1710736339615,-595.50914919,0.00033972,4]
[319436474,1710736339626,-405.76746358,0.00033972,4]
[319436475,1710736339636,-500.0,0.00033972,4]
[319436476,1710736339646,-500.0,0.00033972,4]
[319436477,1710736339657,-500.0,0.00033972,4]
[319436478,1710736339667,-500.0,0.00033972,4]
[319436479,1710736339677,-500.0,0.00033972,4]
[319436480,1710736339688,-500.0,0.00033972,4]
[319436481,1710736339698,-892.35,0.00033972,4]
[319436482,1710736339709,-588.99,0.00033972,4]
[319436483,1710736339719,-500.0,0.00033972,4]
[319436484,1710736339729,-500.0,0.00033972,4]
[319436485,1710736339739,-500.0,0.00033972,4]
[319436486,1710736339750,-500.0,0.00033972,4]
[319436487,1710736339764,-752.67,0.00033972,4]
[319436488,1710736339774,-500.0,0.00033972,4]
[319436489,1710736339786,-500.0,0.00033972,4]
[319436490,1710736339797,-263.25402041,0.00033972,4]
[319436491,1710736339808,-500.0,0.00033972,4]
[319436492,1710736339818,-500.0,0.00033972,4]
[319436493,1710736339829,-500.0,0.00033972,4]
[319436494,1710736339840,-869.9,0.00033972,4]
[319436495,1710736339851,-500.0,0.00033972,4]
[319436496,1710736339862,-1373.45,0.00033972,4]
[319436497,1710736339872,-536.23,0.00033972,4]
[319436498,1710736339883,-1105.28,0.00033972,4]
[319436499,1710736339893,-500.0,0.00033972,4]
[319436500,1710736339903,-500.0,0.00033972,4]
[319436501,1710736339914,-500.0,0.00033972,4]
[319436502,1710736339925,-622.18,0.00033972,4]
[319436503,1710736339936,-285.14748384,0.00033972,4]
[319436504,1710736339947,-500.0,0.00033972,4]
[319436505,1710736339958,-501.4,0.00033972,4]
[319436506,1710736339969,-2231.25,0.00033972,4]
[319436507,1710736339980,-500.0,0.00033972,4]
[319436508,1710736339990,-735.9,0.00033972,4]
[319436509,1710736340001,-500.0,0.00033972,4]
[319436510,1710736340011,-500.0,0.00033972,4]
[319436511,1710736340022,-943.04,0.00033972,4]
[319436512,1710736340033,-503.91,0.00033972,4]
[319436513,1710736340044,-500.0,0.00033972,4]
[319436514,1710736340054,-500.0,0.00033972,4]
[319436515,1710736340065,-1566.14,0.00033972,4]
[319436516,1710736340076,-500.0,0.00033972,4]
[319436517,1710736340087,-507.78,0.00033972,4]
[319436518,1710736340098,-500.0,0.00033972,4]
[319436519,1710736340109,-500.0,0.00033972,4]
[319436520,1710736340120,-832.17,0.00033972,4]
[319436521,1710736340131,-1123.76,0.00033972,4]
[319436522,1710736340141,-600.34,0.00033972,4]
[319436523,1710736340152,-710.22,0.00033972,4]
[319436524,1710736340164,-500.0,0.00033972,4]
[319436525,1710736340175,-226.97252979,0.00033972,4]
[319436526,1710736340186,-1438.95,0.00033972,4]
[319436527,1710736340197,-1027.19,0.00033972,4]
[319436528,1710736340207,-500.0,0.00033972,4]
[319436529,1710736340220,-500.0,0.00033972,4]
[319436530,1710736340231,-624.55,0.00033972,4]
[319436531,1710736340242,-595.77,0.00033972,4]
[319436532,1710736340253,-1826.25,0.00033972,4]
[319436533,1710736340265,-500.0,0.00033972,4]
[319436534,1710736340275,-931.82,0.00033972,4]
[319436535,1710736340286,-2156.89,0.00033972,4]
[319436536,1710736340296,-626.3,0.00033972,4]
[319436537,1710736340307,-500.0,0.00033972,4]
[319436538,1710736340318,-2005.2,0.00033972,4]
[319436539,1710736340329,-500.0,0.00033972,4]
[319436540,1710736340340,-2463.3,0.00033972,4]
[319436541,1710736340351,-217.09270779,0.00033972,4]
[319436542,1710736340362,-500.0,0.00033972,4]
[319436543,1710736340373,-2094.29,0.00033972,4]
[319436544,1710736340384,-911.56,0.00033972,4]
[319436545,1710736340395,-500.0,0.00033972,4]
[319436546,1710736340406,-2639.58,0.00033972,4]
[319436547,1710736340416,-500.0,0.00033972,4]
[319436548,1710736340426,-500.0,0.00033972,4]
[319436549,1710736340437,-3465.75,0.00033972,4]
[319436550,1710736340448,-523.09,0.00033972,4]
[319436551,1710736340457,-500.0,0.00033972,4]
[319436552,1710736340468,-395.97572061,0.00033972,4]
[319436553,1710736340478,-1239.79,0.00033972,4]
[319436554,1710736340489,-500.0,0.00033972,4]
[319436555,1710736340500,-3439.16,0.00033972,4]
[319436556,1710736340510,-865.02,0.00033972,4]
[319436557,1710736340521,-770.0,0.00033972,4]
[319436558,1710736340532,-500.0,0.00033972,4]
[319436559,1710736340542,-1050.75,0.00033972,4]
[319436560,1710736340552,-639.93,0.00033972,4]
[319436561,1710736340562,-3922.62,0.00033972,4]
[319436562,1710736340573,-953.43,0.00033972,4]
[319436563,1710736340583,-611.87,0.00033972,4]
[319436564,1710736340593,-500.0,0.00033972,4]
[319436565,1710736340603,-798.65,0.00033972,4]
[319436566,1710736340614,-2710.57,0.00033972,4]
[319436567,1710736340625,-500.0,0.00033972,4]
[319436568,1710736340636,-2948.74,0.00033972,4]
[319436569,1710736340647,-500.0,0.00033972,4]
[319436570,1710736340657,-539.71,0.00033972,4]
[319436571,1710736340668,-500.0,0.00033972,4]
[319436572,1710736340678,-500.0,0.00033972,4]
[319436573,1710736340689,-500.0,0.00033972,4]
[319436574,1710736340699,-328.88324831,0.00033972,4]
[319436575,1710736340710,-1200.43,0.00033972,4]
[319436576,1710736340720,-500.0,0.00033972,4]
[319436577,1710736340730,-500.0,0.00033972,4]
[319436578,1710736340742,-500.0,0.00033972,4]
[319436579,1710736340757,-626.88173609,0.00033972,4]
[319436580,1710736340767,-646.93,0.00033972,4]
[319436581,1710736340778,-593.8,0.00033972,4]
[319436582,1710736340789,-3040.38,0.00033972,4]
[319436583,1710736340801,-912.86,0.00033972,4]
[319436584,1710736340812,-521.56,0.00033972,4]
[319436585,1710736340822,-2075.71,0.00033972,4]
[319436586,1710736340833,-1026.81,0.00033972,4]
[319436587,1710736340846,-788.56,0.00033972,4]
[319436588,1710736340856,-500.0,0.00033972,4]
[319436589,1710736340868,-615.18,0.00033972,4]
[319436590,1710736340879,-500.0,0.00033972,4]
[319436591,1710736340890,-1506.09,0.00033972,4]
[319436592,1710736340900,-500.0,0.00033972,4]
[319436593,1710736340915,-1442.43,0.00033972,4]
[319436594,1710736340927,-4584.29,0.00033972,4]
[319436595,1710736340939,-1419.83,0.00033972,4]
[319436596,1710736340951,-1416.16,0.00033972,4]
[319436597,1710736340965,-1501.08,0.00033972,4]
[319436598,1710736340977,-500.0,0.00033972,4]
[319436599,1710736340988,-1326.91,0.00033972,4]
[319436600,1710736341000,-500.0,0.00033972,4]
[319436601,1710736341012,-1157.88,0.00033972,4]
[319436602,1710736341023,-500.0,0.00033972,4]
[319436603,1710736341035,-522.83,0.00033972,4]
[319436604,1710736341047,-1901.89,0.00033972,4]
[319436605,1710736341061,-884.27,0.00033972,4]
[319436606,1710736341073,-500.0,0.00033972,4]
[319436607,1710736341084,-718.57,0.00033972,4]
[319436608,1710736341096,-500.0,0.00033972,4]
[319436609,1710736341108,-500.0,0.00033972,4]
[319436610,1710736341120,-626.44,0.00033972,4]
[319436611,1710736341131,-1481.56,0.00033972,4]
[319436612,1710736341143,-820.19,0.00033972,4]
[319436613,1710736341155,-616.04,0.00033972,4]
[319436614,1710736341167,-661.6,0.00033972,4]
[319436615,1710736341180,-807.78,0.00033972,4]
[319436616,1710736341191,-576.56,0.00033972,4]
[319436617,1710736341204,-433.78710873,0.00033972,4]
[319436618,1710736341215,-500.0,0.00033972,4]
[319436619,1710736341226,-1258.08,0.00033972,4]
[319436620,1710736341237,-922.75,0.00033972,4]
[319436621,1710736341250,-500.0,0.00033972,4]
[319436622,1710736341261,-500.0,0.00033972,4]
[319436623,1710736341273,-1859.01,0.00033972,4]
[319436624,1710736341285,-998.14,0.00033972,4]
[319436625,1710736341296,-712.78,0.00033972,4]
[319436626,1710736341307,-3134.02,0.00033972,4]
[319436627,1710736341318,-720.74,0.00033972,4]
[319436628,1710736341329,-835.55,0.00033972,4]
[319436629,1710736341340,-794.41,0.00033972,4]
[319436630,1710736341351,-3743.94,0.00033972,4]
[319436631,1710736341362,-500.0,0.00033972,4]
[319436632,1710736341373,-642.05,0.00033972,4]
[319436633,1710736341385,-1113.65,0.00033972,4]
[319436634,1710736341396,-589.6,0.00033972,4]
[319436635,1710736341409,-633.04,0.00033972,4]
[319436636,1710736341421,-512.73,0.00033972,4]
[319436637,1710736341433,-774.64,0.00033972,4]
[319436638,1710736341444,-1524.04,0.00033972,4]
[319436639,1710736341455,-1898.65,0.00033972,4]
[319436640,1710736341466,-1586.83,0.00033972,4]
[319436641,1710736341476,-500.0,0.00033972,4]
[319436642,1710736341488,-833.34,0.00033972,4]
[319436643,1710736341499,-1329.2,0.00033972,4]
[319436644,1710736341510,-500.0,0.00033972,4]
[319436645,1710736341523,-574.74,0.00033972,4]
[319436646,1710736341536,-501.93,0.00033972,4]
[319436647,1710736341548,-899.79,0.00033972,4]
[319436648,1710736341560,-500.0,0.00033972,4]
[319436649,1710736341573,-836.63,0.00033972,4]
[319436650,1710736341586,-663.74,0.00033972,4]
[319436651,1710736341599,-1143.03,0.00033972,4]
[319436652,1710736341610,-1917.2,0.00033972,4]
[319436653,1710736341622,-1716.33,0.00033972,4]
[319436654,1710736341634,-1304.54,0.00033972,4]
[319436655,1710736341646,-500.0,0.00033972,4]
[319436656,1710736341658,-705.47,0.00033972,4]
[319436657,1710736341671,-794.56,0.00033972,4]
[319436658,1710736341683,-533.91567837,0.00033972,4]
[319436659,1710736341695,-588.98,0.00033972,4]
[319436660,1710736341706,-560.65,0.00033972,4]
[319436661,1710736341717,-2333.6,0.00033972,4]
[319436662,1710736341728,-1061.17,0.00033972,4]
[319436663,1710736341740,-758.7,0.00033972,4]
[319436664,1710736341752,-1095.12,0.00033972,4]
[319436665,1710736341769,-2145.95,0.00033972,4]
[319436666,1710736341781,-1627.27,0.00033972,4]
[319436667,1710736341793,-500.0,0.00033972,4]
[319436668,1710736341806,-500.0,0.00033972,4]
[319436669,1710736341817,-2012.26,0.00033972,4]
[319436670,1710736341829,-1352.76,0.00033972,4]
[319436671,1710736341842,-537.95,0.00033972,4]
[319436672,1710736341854,-500.0,0.00033972,4]
[319436673,1710736341866,-2747.25,0.00033972,4]
[319436674,1710736341878,-606.33,0.00033972,4]
[319436675,1710736341889,-500.0,0.00033972,4]
[319436676,1710736341901,-500.0,0.00033972,4]
[319436677,1710736341912,-500.0,0.00033972,4]
[319436678,1710736341924,-500.0,0.00033972,4]
[319436679,1710736341937,-554.01,0.00033972,4]
[319436680,1710736341949,-807.58,0.00033972,4]
[319436681,1710736341961,-2956.82,0.00033972,4]
[319436682,1710736341974,-500.0,0.00033972,4]
[319436683,1710736341987,-500.0,0.00033972,4]
[319436684,1710736341999,-500.0,0.00033972,4]
[319436685,1710736342012,-1607.18,0.00033972,4]
[319436686,1710736342025,-185.80732781,0.00033972,4]
[319436687,1710736342041,-1221.54,0.00033972,4]
[319436688,1710736342054,-1838.23,0.00033972,4]
[319436689,1710736342067,-1026.01,0.00033972,4]
[319436690,1710736342080,-842.1,0.00033972,4]
[319436691,1710736342092,-512.31,0.00033972,4]
[319436692,1710736342480,-500.0,0.00033972,4]
[319436693,1710736342499,-831.26,0.00033972,4]
[319436694,1710736342509,-1448.23,0.00033972,4]
[319436695,1710736342517,-1157.32,0.00033972,4]
[319436696,1710736342527,-556.38,0.00033972,4]
[319436697,1710736342540,-1287.24,0.00033972,4]
[319436698,1710736342549,-1436.69,0.00033972,4]
[319436699,1710736342558,-1335.54,0.00033972,4]
[319436700,1710736342567,-500.0,0.00033972,4]
[319436701,1710736342577,-1968.76,0.00033972,4]
[319436702,1710736342586,-799.94,0.00033972,4]
[319436703,1710736342595,-1597.09,0.00033972,4]
[319436704,1710736342604,-500.0,0.00033972,4]
[319436705,1710736342613,-500.0,0.00033972,4]
[319436706,1710736342622,-500.0,0.00033972,4]
[319436707,1710736342631,-632.08,0.00033972,4]
[319436708,1710736342640,-681.46,0.00033972,4]
[319436709,1710736342649,-1138.91,0.00033972,4]
[319436710,1710736342657,-1427.1,0.00033972,4]
[319436711,1710736342666,-809.76,0.00033972,4]
[319436712,1710736342675,-500.0,0.00033972,4]
[319436713,1710736342684,-1229.86,0.00033972,4]
[319436714,1710736342693,-691.68,0.00033972,4]
[319436715,1710736342702,-2635.68,0.00033972,4]
[319436716,1710736342711,-500.0,0.00033972,4]
[319436717,1710736342721,-500.0,0.00033972,4]
[319436718,1710736342730,-500.0,0.00033972,4]
[319436719,1710736342739,-788.73,0.00033972,4]
[319436720,1710736342750,-500.0,0.00033972,4]
[319436721,1710736342761,-500.0,0.00033972,4]
[319436722,1710736342770,-2115.38,0.00033972,4]
[319436723,1710736342779,-500.0,0.00033972,4]
[319436724,1710736342788,-1520.72,0.00033972,4]
[319436725,1710736342797,-1607.09,0.00033972,4]
[319436726,1710736342806,-500.0,0.00033972,4]
[319436727,1710736342815,-500.0,0.00033972,4]
[319436728,1710736342825,-1832.55,0.00033972,4]
[319436729,1710736342836,-824.57,0.00033972,4]
[319436730,1710736342846,-1581.71,0.00033972,4]
[319436731,1710736342855,-583.42,0.00033972,4]
[319436732,1710736342864,-1212.73,0.00033972,4]
[319436733,1710736342874,-1404.3,0.00033972,4]
[319436734,1710736342883,-24025.87,0.00033972,4]
[319436735,1710736342893,-500.0,0.00033972,4]
[319436736,1710736342903,-2546.72,0.00033972,4]
[319436737,1710736342912,-2851.25,0.00033972,4]
[319436738,1710736342921,-2287.3,0.00033972,4]
[319436739,1710736342930,-647.58,0.00033972,4]
[319436740,1710736342940,-500.0,0.00033972,4]
[319436741,1710736342949,-585.33,0.00033972,4]
[319436742,1710736342959,-1053.54,0.00033972,4]
[319436743,1710736342969,-1503.64,0.00033972,4]
[319436744,1710736342978,-1183.08,0.00033972,4]
[319436745,1710736342989,-554.14,0.00033972,4]
[319436746,1710736342998,-2122.6,0.00033972,4]
[319436747,1710736343008,-500.0,0.00033972,4]
[319436748,1710736343017,-513.85,0.00033972,4]
[319436749,1710736343027,-1088.26,0.00033972,4]
[319436750,1710736343038,-1355.29,0.00033972,4]
[319436751,1710736343048,-1081.54,0.00033972,4]
[319436752,1710736343058,-602.31,0.00033972,4]
[319436753,1710736343067,-16800.01,0.00033972,4]
[319436754,1710736343077,-732.67,0.00033972,4]
[319436755,1710736343087,-500.0,0.00033972,4]
[319436756,1710736343097,-500.0,0.00033972,4]
[319436757,1710736343107,-742.96,0.00033972,4]
[319436758,1710736343117,-875.28,0.00033972,4]
[319436759,1710736343126,-500.0,0.00033972,4]
[319436760,1710736343135,-1382.05,0.00033972,4]
[319436761,1710736343145,-9617.26,0.00033972,4]
[319436762,1710736343155,-632.75,0.00033972,4]
[319436763,1710736343165,-523.3,0.00033972,4]
[319436764,1710736343174,-512.23866451,0.00033972,4]
[319436765,1710736343183,-9955.07,0.00033972,4]
[319436766,1710736343192,-1242.28,0.00033972,4]
[319436767,1710736343201,-815.39,0.00033972,4]
[319436768,1710736343211,-606.68,0.00033972,4]
[319436769,1710736343221,-2827.35,0.00033972,4]
[319436770,1710736343230,-500.0,0.00033972,4]
[319436771,1710736343240,-584.4,0.00033972,4]
[319436772,1710736343249,-2844.9,0.00033972,4]
[319436773,1710736343259,-918.65,0.00033972,4]
[319436774,1710736343268,-2329.09,0.00033972,4]
[319436775,1710736343278,-2657.41,0.00033972,4]
[319436776,1710736343288,-500.0,0.00033972,4]
[319436777,1710736343298,-5715.22,0.00033972,4]
[319436778,1710736343307,-1178.39,0.00033972,4]
[319436779,1710736343317,-1030.3,0.00033972,4]
[319436780,1710736343326,-7010.64,0.00033972,4]
[319436781,1710736343336,-795.31,0.00033972,4]
[319436782,1710736343345,-647.9,0.00033972,4]
[319436783,1710736343354,-756.1,0.00033972,4]
[319436784,1710736343364,-500.0,0.00033972,4]
[319436785,1710736343373,-500.0,0.00033972,4]
[319436786,1710736343382,-1213.71,0.00033972,4]
[319436787,1710736343392,-3112.49,0.00033972,4]
[319436788,1710736343401,-16099.23,0.00033972,4]
[319436789,1710736343410,-1067.48,0.00033972,4]
[319436790,1710736343419,-1085.99,0.00033972,4]
[319436791,1710736343428,-500.0,0.00033972,4]
[319436792,1710736343438,-7279.53,0.00033972,4]
[319436793,1710736343447,-500.0,0.00033972,4]
[319436794,1710736343456,-3639.26,0.00033972,4]
[319436795,1710736343466,-4937.08,0.00033972,4]
[319436796,1710736343475,-14656.9,0.00033972,4]
[319436797,1710736343484,-500.0,0.00033972,4]
[319436798,1710736343494,-1119.07,0.00033972,4]
[319436799,1710736343503,-500.0,0.00033972,4]
[319436800,1710736343512,-714.97,0.00033972,4]
[319436801,1710736343521,-195.32502222,0.00033972,4]
[319436802,1710736343531,-3778.15,0.00033972,4]
[319436803,1710736343540,-2442.22,0.00033972,4]
[319436804,1710736343550,-915.55,0.00033972,4]
[319436805,1710736343559,-500.0,0.00033972,4]
[319436806,1710736343568,-2039.35,0.00033972,4]
[319436807,1710736343577,-1590.31,0.00033972,4]
[319436808,1710736343586,-189.71413932,0.00033972,2]
[319436809,1710736343596,-2078.76,0.00033972,4]
[319436810,1710736343605,-765.76,0.00033972,4]
[319436811,1710736343615,-2024.35,0.00033972,4]
[319436812,1710736343625,-500.0,0.00033972,4]
[319436813,1710736343634,-2000.0,0.00033973,2]
[319436814,1710736343644,-317.76,0.00033975,2]
[319436815,1710736343653,-150.0,0.00033987,7]
[319436816,1710736343662,-200000.0,0.00034,24]
[319436817,1710736343672,-200000.0,0.00034,34]
[319436818,1710736343681,-10337.50884582,0.00034,7]
[319436819,1710736343690,-2500.0,0.00034,4]
[319436820,1710736343700,-1000.0,0.00034,120]
[319436821,1710736343709,-156.19687462,0.00034,30]
[319436822,1710736343718,-156.1968746,0.00034,30]
[319436823,1710736343727,-2100.0,0.00034,2]
[319436824,1710736343737,-600.0,0.00034,35]
[319436825,1710736343747,-1116.0,0.00034071,20]
[319436826,1710736343758,-150.0,0.00034098,7]
[319436827,1710736343770,-812.0,0.000341,23]
[319436828,1710736343779,-150.0,0.00034191,7]
[319436829,1710736343789,-151.031811,0.00034198,4]
[319436830,1710736343799,-151.031811,0.00034198,5]
[319436831,1710736343808,-150.0,0.00034209,7]
[319436832,1710736343817,-150.0,0.00034246,7]
[319436833,1710736343827,-500.0,0.00034246,4]
[319436834,1710736343837,-423.18783427,0.00034246,4]
[319436835,1710736343847,-500.0,0.00034246,4]
[319436836,1710736343857,-500.0,0.00034246,4]
[319436837,1710736343866,-500.0,0.00034246,4]
[319436838,1710736343876,-475.60504412,0.00034246,4]
[319436839,1710736343886,-500.0,0.00034246,4]
[319436840,1710736343895,-892.35,0.00034246,4]
[319436841,1710736343904,-588.99,0.00034246,4]
[319436842,1710736343914,-500.0,0.00034246,4]
[319436843,1710736343923,-500.0,0.00034246,4]
[319436844,1710736343933,-500.0,0.00034246,4]
[319436845,1710736343942,-500.0,0.00034246,4]
[319436846,1710736343951,-752.67,0.00034246,4]
[319436847,1710736343960,-273.18442438,0.00034246,4]
[319436848,1710736343970,-261.22359315,0.00034246,4]
[319436849,1710736343979,-500.0,0.00034246,4]
[319436850,1710736343989,-254.71172151,0.00034246,4]
[319436851,1710736343998,-274.36095979,0.00034246,4]
[319436852,1710736344007,-869.9,0.00034246,4]
[319436853,1710736344016,-500.0,0.00034246,4]
[319436854,1710736344026,-1373.45,0.00034246,4]